{"text_format":"1","workbook":"xlsx","n_sheets":5,"sheets":["Produktu pārdošanas atskaite ","Vēsturiskie dati","Cenrādis","Cenas punkta rakurss","Pārdošanas tendenču rakurss"],"not_rendered":{"charts":2,"images":0,"macros":0,"external_links":0,"defined_names":6,"comments":0,"pivot_tables":2},"unopened":[],"bounds":{"document_bytes":16777216,"sheet_cells":100000,"rows_first":2000,"rows_last":500,"rows_between":2000,"halvings":0,"cell_chars":16384,"cell_head_chars":4096},"cells_cut":0,"cells_raw":0,"read":"whole","date_system":"1900"}

{"sheet":"Produktu pārdošanas atskaite ","index":0,"n_rows":20,"n_cols":2,"rows_kept":20,"cut":false,"hidden":false,"merged":[]}
[null,"Atskaite par produktu pārdošanu"]
[]
[]
[]
[]
[]
[]
[]
[]
[]
[]
[]
[]
[]
[]
[]
[]
[]
[]
[null," Produkti"]

{"sheet":"Vēsturiskie dati","index":1,"n_rows":33,"n_cols":10,"rows_kept":33,"cut":false,"hidden":false,"merged":[]}
[null,"Vēsturiskā produktu cenu lapa un pārdošanas rezultāti"]
[]
[null,"Produkta ID","Produkta nosaukums","Cenas datums","Mazumtirdzniecības cena par vienību","Vairumtirdzniecības cena par vienību*","Pārdotās vienības (mazumtirdzn.)","Pārdotās vienības (vairumtirdzn.)","Kopā pārdots (skaits)","Kopā pārdots (nauda)"]
[null,5,{"$f":"IFERROR(IF(tabula_pārdošana[[#This Row],[Produkta ID]]<>\"\",VLOOKUP(tabula_pārdošana[Produkta ID],tabula_produkti[[Produkta ID]:[Nosaukums]],2,FALSE),\"\"),\"Unknown Product ID\")","v":"Īsbikses"},"2012-01-01",20,20,629,1254,{"$f":"tabula_pārdošana[[#This Row],[Pārdotās vienības (mazumtirdzn.)]]+tabula_pārdošana[[#This Row],[Pārdotās vienības (vairumtirdzn.)]]","v":1883},{"$f":"tabula_pārdošana[[#This Row],[Pārdotās vienības (mazumtirdzn.)]]*tabula_pārdošana[[#This Row],[Mazumtirdzniecības cena par vienību]]+tabula_pārdošana[[#This Row],[Pārdotās vienības (vairumtirdzn.)]]*tabula_pārdošana[[#This Row],[Vairumtirdzniecības cena par vienību*]]","v":37660}]
[null,1,{"$f":"IFERROR(IF(tabula_pārdošana[[#This Row],[Produkta ID]]<>\"\",VLOOKUP(tabula_pārdošana[Produkta ID],tabula_produkti[[Produkta ID]:[Nosaukums]],2,FALSE),\"\"),\"Unknown Product ID\")","v":"Krekli"},"2012-01-01",88,54,734,1427,{"$f":"tabula_pārdošana[[#This Row],[Pārdotās vienības (mazumtirdzn.)]]+tabula_pārdošana[[#This Row],[Pārdotās vienības (vairumtirdzn.)]]","v":2161},{"$f":"tabula_pārdošana[[#This Row],[Pārdotās vienības (mazumtirdzn.)]]*tabula_pārdošana[[#This Row],[Mazumtirdzniecības cena par vienību]]+tabula_pārdošana[[#This Row],[Pārdotās vienības (vairumtirdzn.)]]*tabula_pārdošana[[#This Row],[Vairumtirdzniecības cena par vienību*]]","v":141650}]
[null,2,{"$f":"IFERROR(IF(tabula_pārdošana[[#This Row],[Produkta ID]]<>\"\",VLOOKUP(tabula_pārdošana[Produkta ID],tabula_produkti[[Produkta ID]:[Nosaukums]],2,FALSE),\"\"),\"Unknown Product ID\")","v":"Sandales"},"2012-01-01",70,44,744,1043,{"$f":"tabula_pārdošana[[#This Row],[Pārdotās vienības (mazumtirdzn.)]]+tabula_pārdošana[[#This Row],[Pārdotās vienības (vairumtirdzn.)]]","v":1787},{"$f":"tabula_pārdošana[[#This Row],[Pārdotās vienības (mazumtirdzn.)]]*tabula_pārdošana[[#This Row],[Mazumtirdzniecības cena par vienību]]+tabula_pārdošana[[#This Row],[Pārdotās vienības (vairumtirdzn.)]]*tabula_pārdošana[[#This Row],[Vairumtirdzniecības cena par vienību*]]","v":97972}]
[null,3,{"$f":"IFERROR(IF(tabula_pārdošana[[#This Row],[Produkta ID]]<>\"\",VLOOKUP(tabula_pārdošana[Produkta ID],tabula_produkti[[Produkta ID]:[Nosaukums]],2,FALSE),\"\"),\"Unknown Product ID\")","v":"Saulessargi"},"2012-01-01",63,44,681,1523,{"$f":"tabula_pārdošana[[#This Row],[Pārdotās vienības (mazumtirdzn.)]]+tabula_pārdošana[[#This Row],[Pārdotās vienības (vairumtirdzn.)]]","v":2204},{"$f":"tabula_pārdošana[[#This Row],[Pārdotās vienības (mazumtirdzn.)]]*tabula_pārdošana[[#This Row],[Mazumtirdzniecības cena par vienību]]+tabula_pārdošana[[#This Row],[Pārdotās vienības (vairumtirdzn.)]]*tabula_pārdošana[[#This Row],[Vairumtirdzniecības cena par vienību*]]","v":109915}]
[null,4,{"$f":"IFERROR(IF(tabula_pārdošana[[#This Row],[Produkta ID]]<>\"\",VLOOKUP(tabula_pārdošana[Produkta ID],tabula_produkti[[Produkta ID]:[Nosaukums]],2,FALSE),\"\"),\"Unknown Product ID\")","v":"Ūdens pudeles"},"2012-01-01",35,27,602,1822,{"$f":"tabula_pārdošana[[#This Row],[Pārdotās vienības (mazumtirdzn.)]]+tabula_pārdošana[[#This Row],[Pārdotās vienības (vairumtirdzn.)]]","v":2424},{"$f":"tabula_pārdošana[[#This Row],[Pārdotās vienības (mazumtirdzn.)]]*tabula_pārdošana[[#This Row],[Mazumtirdzniecības cena par vienību]]+tabula_pārdošana[[#This Row],[Pārdotās vienības (vairumtirdzn.)]]*tabula_pārdošana[[#This Row],[Vairumtirdzniecības cena par vienību*]]","v":70264}]
[null,1,{"$f":"IFERROR(IF(tabula_pārdošana[[#This Row],[Produkta ID]]<>\"\",VLOOKUP(tabula_pārdošana[Produkta ID],tabula_produkti[[Produkta ID]:[Nosaukums]],2,FALSE),\"\"),\"Unknown Product ID\")","v":"Krekli"},"2012-02-01",55,44,678,1515,{"$f":"tabula_pārdošana[[#This Row],[Pārdotās vienības (mazumtirdzn.)]]+tabula_pārdošana[[#This Row],[Pārdotās vienības (vairumtirdzn.)]]","v":2193},{"$f":"tabula_pārdošana[[#This Row],[Pārdotās vienības (mazumtirdzn.)]]*tabula_pārdošana[[#This Row],[Mazumtirdzniecības cena par vienību]]+tabula_pārdošana[[#This Row],[Pārdotās vienības (vairumtirdzn.)]]*tabula_pārdošana[[#This Row],[Vairumtirdzniecības cena par vienību*]]","v":103950}]
[null,2,{"$f":"IFERROR(IF(tabula_pārdošana[[#This Row],[Produkta ID]]<>\"\",VLOOKUP(tabula_pārdošana[Produkta ID],tabula_produkti[[Produkta ID]:[Nosaukums]],2,FALSE),\"\"),\"Unknown Product ID\")","v":"Sandales"},"2012-02-01",83,54,753,1005,{"$f":"tabula_pārdošana[[#This Row],[Pārdotās vienības (mazumtirdzn.)]]+tabula_pārdošana[[#This Row],[Pārdotās vienības (vairumtirdzn.)]]","v":1758},{"$f":"tabula_pārdošana[[#This Row],[Pārdotās vienības (mazumtirdzn.)]]*tabula_pārdošana[[#This Row],[Mazumtirdzniecības cena par vienību]]+tabula_pārdošana[[#This Row],[Pārdotās vienības (vairumtirdzn.)]]*tabula_pārdošana[[#This Row],[Vairumtirdzniecības cena par vienību*]]","v":116769}]
[null,3,{"$f":"IFERROR(IF(tabula_pārdošana[[#This Row],[Produkta ID]]<>\"\",VLOOKUP(tabula_pārdošana[Produkta ID],tabula_produkti[[Produkta ID]:[Nosaukums]],2,FALSE),\"\"),\"Unknown Product ID\")","v":"Saulessargi"},"2012-02-01",34,34,986,1069,{"$f":"tabula_pārdošana[[#This Row],[Pārdotās vienības (mazumtirdzn.)]]+tabula_pārdošana[[#This Row],[Pārdotās vienības (vairumtirdzn.)]]","v":2055},{"$f":"tabula_pārdošana[[#This Row],[Pārdotās vienības (mazumtirdzn.)]]*tabula_pārdošana[[#This Row],[Mazumtirdzniecības cena par vienību]]+tabula_pārdošana[[#This Row],[Pārdotās vienības (vairumtirdzn.)]]*tabula_pārdošana[[#This Row],[Vairumtirdzniecības cena par vienību*]]","v":69870}]
[null,4,{"$f":"IFERROR(IF(tabula_pārdošana[[#This Row],[Produkta ID]]<>\"\",VLOOKUP(tabula_pārdošana[Produkta ID],tabula_produkti[[Produkta ID]:[Nosaukums]],2,FALSE),\"\"),\"Unknown Product ID\")","v":"Ūdens pudeles"},"2012-02-01",35,25,848,1211,{"$f":"tabula_pārdošana[[#This Row],[Pārdotās vienības (mazumtirdzn.)]]+tabula_pārdošana[[#This Row],[Pārdotās vienības (vairumtirdzn.)]]","v":2059},{"$f":"tabula_pārdošana[[#This Row],[Pārdotās vienības (mazumtirdzn.)]]*tabula_pārdošana[[#This Row],[Mazumtirdzniecības cena par vienību]]+tabula_pārdošana[[#This Row],[Pārdotās vienības (vairumtirdzn.)]]*tabula_pārdošana[[#This Row],[Vairumtirdzniecības cena par vienību*]]","v":59955}]
[null,5,{"$f":"IFERROR(IF(tabula_pārdošana[[#This Row],[Produkta ID]]<>\"\",VLOOKUP(tabula_pārdošana[Produkta ID],tabula_produkti[[Produkta ID]:[Nosaukums]],2,FALSE),\"\"),\"Unknown Product ID\")","v":"Īsbikses"},"2012-02-01",41,38,980,1330,{"$f":"tabula_pārdošana[[#This Row],[Pārdotās vienības (mazumtirdzn.)]]+tabula_pārdošana[[#This Row],[Pārdotās vienības (vairumtirdzn.)]]","v":2310},{"$f":"tabula_pārdošana[[#This Row],[Pārdotās vienības (mazumtirdzn.)]]*tabula_pārdošana[[#This Row],[Mazumtirdzniecības cena par vienību]]+tabula_pārdošana[[#This Row],[Pārdotās vienības (vairumtirdzn.)]]*tabula_pārdošana[[#This Row],[Vairumtirdzniecības cena par vienību*]]","v":90720}]
[null,1,{"$f":"IFERROR(IF(tabula_pārdošana[[#This Row],[Produkta ID]]<>\"\",VLOOKUP(tabula_pārdošana[Produkta ID],tabula_produkti[[Produkta ID]:[Nosaukums]],2,FALSE),\"\"),\"Unknown Product ID\")","v":"Krekli"},"2012-02-29",27,18,533,1936,{"$f":"tabula_pārdošana[[#This Row],[Pārdotās vienības (mazumtirdzn.)]]+tabula_pārdošana[[#This Row],[Pārdotās vienības (vairumtirdzn.)]]","v":2469},{"$f":"tabula_pārdošana[[#This Row],[Pārdotās vienības (mazumtirdzn.)]]*tabula_pārdošana[[#This Row],[Mazumtirdzniecības cena par vienību]]+tabula_pārdošana[[#This Row],[Pārdotās vienības (vairumtirdzn.)]]*tabula_pārdošana[[#This Row],[Vairumtirdzniecības cena par vienību*]]","v":49239}]
[null,2,{"$f":"IFERROR(IF(tabula_pārdošana[[#This Row],[Produkta ID]]<>\"\",VLOOKUP(tabula_pārdošana[Produkta ID],tabula_produkti[[Produkta ID]:[Nosaukums]],2,FALSE),\"\"),\"Unknown Product ID\")","v":"Sandales"},"2012-02-29",38,28,952,1512,{"$f":"tabula_pārdošana[[#This Row],[Pārdotās vienības (mazumtirdzn.)]]+tabula_pārdošana[[#This Row],[Pārdotās vienības (vairumtirdzn.)]]","v":2464},{"$f":"tabula_pārdošana[[#This Row],[Pārdotās vienības (mazumtirdzn.)]]*tabula_pārdošana[[#This Row],[Mazumtirdzniecības cena par vienību]]+tabula_pārdošana[[#This Row],[Pārdotās vienības (vairumtirdzn.)]]*tabula_pārdošana[[#This Row],[Vairumtirdzniecības cena par vienību*]]","v":78512}]
[null,3,{"$f":"IFERROR(IF(tabula_pārdošana[[#This Row],[Produkta ID]]<>\"\",VLOOKUP(tabula_pārdošana[Produkta ID],tabula_produkti[[Produkta ID]:[Nosaukums]],2,FALSE),\"\"),\"Unknown Product ID\")","v":"Saulessargi"},"2012-02-29",92,92,956,1266,{"$f":"tabula_pārdošana[[#This Row],[Pārdotās vienības (mazumtirdzn.)]]+tabula_pārdošana[[#This Row],[Pārdotās vienības (vairumtirdzn.)]]","v":2222},{"$f":"tabula_pārdošana[[#This Row],[Pārdotās vienības (mazumtirdzn.)]]*tabula_pārdošana[[#This Row],[Mazumtirdzniecības cena par vienību]]+tabula_pārdošana[[#This Row],[Pārdotās vienības (vairumtirdzn.)]]*tabula_pārdošana[[#This Row],[Vairumtirdzniecības cena par vienību*]]","v":204424}]
[null,4,{"$f":"IFERROR(IF(tabula_pārdošana[[#This Row],[Produkta ID]]<>\"\",VLOOKUP(tabula_pārdošana[Produkta ID],tabula_produkti[[Produkta ID]:[Nosaukums]],2,FALSE),\"\"),\"Unknown Product ID\")","v":"Ūdens pudeles"},"2012-02-29",43,36,952,1390,{"$f":"tabula_pārdošana[[#This Row],[Pārdotās vienības (mazumtirdzn.)]]+tabula_pārdošana[[#This Row],[Pārdotās vienības (vairumtirdzn.)]]","v":2342},{"$f":"tabula_pārdošana[[#This Row],[Pārdotās vienības (mazumtirdzn.)]]*tabula_pārdošana[[#This Row],[Mazumtirdzniecības cena par vienību]]+tabula_pārdošana[[#This Row],[Pārdotās vienības (vairumtirdzn.)]]*tabula_pārdošana[[#This Row],[Vairumtirdzniecības cena par vienību*]]","v":90976}]
[null,5,{"$f":"IFERROR(IF(tabula_pārdošana[[#This Row],[Produkta ID]]<>\"\",VLOOKUP(tabula_pārdošana[Produkta ID],tabula_produkti[[Produkta ID]:[Nosaukums]],2,FALSE),\"\"),\"Unknown Product ID\")","v":"Īsbikses"},"2012-02-29",98,73,530,1452,{"$f":"tabula_pārdošana[[#This Row],[Pārdotās vienības (mazumtirdzn.)]]+tabula_pārdošana[[#This Row],[Pārdotās vienības (vairumtirdzn.)]]","v":1982},{"$f":"tabula_pārdošana[[#This Row],[Pārdotās vienības (mazumtirdzn.)]]*tabula_pārdošana[[#This Row],[Mazumtirdzniecības cena par vienību]]+tabula_pārdošana[[#This Row],[Pārdotās vienības (vairumtirdzn.)]]*tabula_pārdošana[[#This Row],[Vairumtirdzniecības cena par vienību*]]","v":157936}]
[null,1,{"$f":"IFERROR(IF(tabula_pārdošana[[#This Row],[Produkta ID]]<>\"\",VLOOKUP(tabula_pārdošana[Produkta ID],tabula_produkti[[Produkta ID]:[Nosaukums]],2,FALSE),\"\"),\"Unknown Product ID\")","v":"Krekli"},"2012-03-31",38,28,973,1415,{"$f":"tabula_pārdošana[[#This Row],[Pārdotās vienības (mazumtirdzn.)]]+tabula_pārdošana[[#This Row],[Pārdotās vienības (vairumtirdzn.)]]","v":2388},{"$f":"tabula_pārdošana[[#This Row],[Pārdotās vienības (mazumtirdzn.)]]*tabula_pārdošana[[#This Row],[Mazumtirdzniecības cena par vienību]]+tabula_pārdošana[[#This Row],[Pārdotās vienības (vairumtirdzn.)]]*tabula_pārdošana[[#This Row],[Vairumtirdzniecības cena par vienību*]]","v":76594}]
[null,2,{"$f":"IFERROR(IF(tabula_pārdošana[[#This Row],[Produkta ID]]<>\"\",VLOOKUP(tabula_pārdošana[Produkta ID],tabula_produkti[[Produkta ID]:[Nosaukums]],2,FALSE),\"\"),\"Unknown Product ID\")","v":"Sandales"},"2012-03-31",50,36,672,1105,{"$f":"tabula_pārdošana[[#This Row],[Pārdotās vienības (mazumtirdzn.)]]+tabula_pārdošana[[#This Row],[Pārdotās vienības (vairumtirdzn.)]]","v":1777},{"$f":"tabula_pārdošana[[#This Row],[Pārdotās vienības (mazumtirdzn.)]]*tabula_pārdošana[[#This Row],[Mazumtirdzniecības cena par vienību]]+tabula_pārdošana[[#This Row],[Pārdotās vienības (vairumtirdzn.)]]*tabula_pārdošana[[#This Row],[Vairumtirdzniecības cena par vienību*]]","v":73380}]
[null,3,{"$f":"IFERROR(IF(tabula_pārdošana[[#This Row],[Produkta ID]]<>\"\",VLOOKUP(tabula_pārdošana[Produkta ID],tabula_produkti[[Produkta ID]:[Nosaukums]],2,FALSE),\"\"),\"Unknown Product ID\")","v":"Saulessargi"},"2012-03-31",24,23,769,1629,{"$f":"tabula_pārdošana[[#This Row],[Pārdotās vienības (mazumtirdzn.)]]+tabula_pārdošana[[#This Row],[Pārdotās vienības (vairumtirdzn.)]]","v":2398},{"$f":"tabula_pārdošana[[#This Row],[Pārdotās vienības (mazumtirdzn.)]]*tabula_pārdošana[[#This Row],[Mazumtirdzniecības cena par vienību]]+tabula_pārdošana[[#This Row],[Pārdotās vienības (vairumtirdzn.)]]*tabula_pārdošana[[#This Row],[Vairumtirdzniecības cena par vienību*]]","v":55923}]
[null,4,{"$f":"IFERROR(IF(tabula_pārdošana[[#This Row],[Produkta ID]]<>\"\",VLOOKUP(tabula_pārdošana[Produkta ID],tabula_produkti[[Produkta ID]:[Nosaukums]],2,FALSE),\"\"),\"Unknown Product ID\")","v":"Ūdens pudeles"},"2012-03-31",72,57,985,1848,{"$f":"tabula_pārdošana[[#This Row],[Pārdotās vienības (mazumtirdzn.)]]+tabula_pārdošana[[#This Row],[Pārdotās vienības (vairumtirdzn.)]]","v":2833},{"$f":"tabula_pārdošana[[#This Row],[Pārdotās vienības (mazumtirdzn.)]]*tabula_pārdošana[[#This Row],[Mazumtirdzniecības cena par vienību]]+tabula_pārdošana[[#This Row],[Pārdotās vienības (vairumtirdzn.)]]*tabula_pārdošana[[#This Row],[Vairumtirdzniecības cena par vienību*]]","v":176256}]
[null,5,{"$f":"IFERROR(IF(tabula_pārdošana[[#This Row],[Produkta ID]]<>\"\",VLOOKUP(tabula_pārdošana[Produkta ID],tabula_produkti[[Produkta ID]:[Nosaukums]],2,FALSE),\"\"),\"Unknown Product ID\")","v":"Īsbikses"},"2012-03-31",85,43,721,1426,{"$f":"tabula_pārdošana[[#This Row],[Pārdotās vienības (mazumtirdzn.)]]+tabula_pārdošana[[#This Row],[Pārdotās vienības (vairumtirdzn.)]]","v":2147},{"$f":"tabula_pārdošana[[#This Row],[Pārdotās vienības (mazumtirdzn.)]]*tabula_pārdošana[[#This Row],[Mazumtirdzniecības cena par vienību]]+tabula_pārdošana[[#This Row],[Pārdotās vienības (vairumtirdzn.)]]*tabula_pārdošana[[#This Row],[Vairumtirdzniecības cena par vienību*]]","v":122603}]
[null,1,{"$f":"IFERROR(IF(tabula_pārdošana[[#This Row],[Produkta ID]]<>\"\",VLOOKUP(tabula_pārdošana[Produkta ID],tabula_produkti[[Produkta ID]:[Nosaukums]],2,FALSE),\"\"),\"Unknown Product ID\")","v":"Krekli"},"2012-04-30",91,65,603,1226,{"$f":"tabula_pārdošana[[#This Row],[Pārdotās vienības (mazumtirdzn.)]]+tabula_pārdošana[[#This Row],[Pārdotās vienības (vairumtirdzn.)]]","v":1829},{"$f":"tabula_pārdošana[[#This Row],[Pārdotās vienības (mazumtirdzn.)]]*tabula_pārdošana[[#This Row],[Mazumtirdzniecības cena par vienību]]+tabula_pārdošana[[#This Row],[Pārdotās vienības (vairumtirdzn.)]]*tabula_pārdošana[[#This Row],[Vairumtirdzniecības cena par vienību*]]","v":134563}]
[null,2,{"$f":"IFERROR(IF(tabula_pārdošana[[#This Row],[Produkta ID]]<>\"\",VLOOKUP(tabula_pārdošana[Produkta ID],tabula_produkti[[Produkta ID]:[Nosaukums]],2,FALSE),\"\"),\"Unknown Product ID\")","v":"Sandales"},"2012-04-30",91,55,892,1823,{"$f":"tabula_pārdošana[[#This Row],[Pārdotās vienības (mazumtirdzn.)]]+tabula_pārdošana[[#This Row],[Pārdotās vienības (vairumtirdzn.)]]","v":2715},{"$f":"tabula_pārdošana[[#This Row],[Pārdotās vienības (mazumtirdzn.)]]*tabula_pārdošana[[#This Row],[Mazumtirdzniecības cena par vienību]]+tabula_pārdošana[[#This Row],[Pārdotās vienības (vairumtirdzn.)]]*tabula_pārdošana[[#This Row],[Vairumtirdzniecības cena par vienību*]]","v":181437}]
[null,3,{"$f":"IFERROR(IF(tabula_pārdošana[[#This Row],[Produkta ID]]<>\"\",VLOOKUP(tabula_pārdošana[Produkta ID],tabula_produkti[[Produkta ID]:[Nosaukums]],2,FALSE),\"\"),\"Unknown Product ID\")","v":"Saulessargi"},"2012-04-30",42,42,611,1181,{"$f":"tabula_pārdošana[[#This Row],[Pārdotās vienības (mazumtirdzn.)]]+tabula_pārdošana[[#This Row],[Pārdotās vienības (vairumtirdzn.)]]","v":1792},{"$f":"tabula_pārdošana[[#This Row],[Pārdotās vienības (mazumtirdzn.)]]*tabula_pārdošana[[#This Row],[Mazumtirdzniecības cena par vienību]]+tabula_pārdošana[[#This Row],[Pārdotās vienības (vairumtirdzn.)]]*tabula_pārdošana[[#This Row],[Vairumtirdzniecības cena par vienību*]]","v":75264}]
[null,4,{"$f":"IFERROR(IF(tabula_pārdošana[[#This Row],[Produkta ID]]<>\"\",VLOOKUP(tabula_pārdošana[Produkta ID],tabula_produkti[[Produkta ID]:[Nosaukums]],2,FALSE),\"\"),\"Unknown Product ID\")","v":"Ūdens pudeles"},"2012-04-30",85,43,530,1039,{"$f":"tabula_pārdošana[[#This Row],[Pārdotās vienības (mazumtirdzn.)]]+tabula_pārdošana[[#This Row],[Pārdotās vienības (vairumtirdzn.)]]","v":1569},{"$f":"tabula_pārdošana[[#This Row],[Pārdotās vienības (mazumtirdzn.)]]*tabula_pārdošana[[#This Row],[Mazumtirdzniecības cena par vienību]]+tabula_pārdošana[[#This Row],[Pārdotās vienības (vairumtirdzn.)]]*tabula_pārdošana[[#This Row],[Vairumtirdzniecības cena par vienību*]]","v":89727}]
[null,5,{"$f":"IFERROR(IF(tabula_pārdošana[[#This Row],[Produkta ID]]<>\"\",VLOOKUP(tabula_pārdošana[Produkta ID],tabula_produkti[[Produkta ID]:[Nosaukums]],2,FALSE),\"\"),\"Unknown Product ID\")","v":"Īsbikses"},"2012-04-30",82,71,716,1249,{"$f":"tabula_pārdošana[[#This Row],[Pārdotās vienības (mazumtirdzn.)]]+tabula_pārdošana[[#This Row],[Pārdotās vienības (vairumtirdzn.)]]","v":1965},{"$f":"tabula_pārdošana[[#This Row],[Pārdotās vienības (mazumtirdzn.)]]*tabula_pārdošana[[#This Row],[Mazumtirdzniecības cena par vienību]]+tabula_pārdošana[[#This Row],[Pārdotās vienības (vairumtirdzn.)]]*tabula_pārdošana[[#This Row],[Vairumtirdzniecības cena par vienību*]]","v":147391}]
[null,1,{"$f":"IFERROR(IF(tabula_pārdošana[[#This Row],[Produkta ID]]<>\"\",VLOOKUP(tabula_pārdošana[Produkta ID],tabula_produkti[[Produkta ID]:[Nosaukums]],2,FALSE),\"\"),\"Unknown Product ID\")","v":"Krekli"},"2012-05-14",34,31,850,1548,{"$f":"tabula_pārdošana[[#This Row],[Pārdotās vienības (mazumtirdzn.)]]+tabula_pārdošana[[#This Row],[Pārdotās vienības (vairumtirdzn.)]]","v":2398},{"$f":"tabula_pārdošana[[#This Row],[Pārdotās vienības (mazumtirdzn.)]]*tabula_pārdošana[[#This Row],[Mazumtirdzniecības cena par vienību]]+tabula_pārdošana[[#This Row],[Pārdotās vienības (vairumtirdzn.)]]*tabula_pārdošana[[#This Row],[Vairumtirdzniecības cena par vienību*]]","v":76888}]
[null,2,{"$f":"IFERROR(IF(tabula_pārdošana[[#This Row],[Produkta ID]]<>\"\",VLOOKUP(tabula_pārdošana[Produkta ID],tabula_produkti[[Produkta ID]:[Nosaukums]],2,FALSE),\"\"),\"Unknown Product ID\")","v":"Sandales"},"2012-05-14",64,40,876,1663,{"$f":"tabula_pārdošana[[#This Row],[Pārdotās vienības (mazumtirdzn.)]]+tabula_pārdošana[[#This Row],[Pārdotās vienības (vairumtirdzn.)]]","v":2539},{"$f":"tabula_pārdošana[[#This Row],[Pārdotās vienības (mazumtirdzn.)]]*tabula_pārdošana[[#This Row],[Mazumtirdzniecības cena par vienību]]+tabula_pārdošana[[#This Row],[Pārdotās vienības (vairumtirdzn.)]]*tabula_pārdošana[[#This Row],[Vairumtirdzniecības cena par vienību*]]","v":122584}]
[null,3,{"$f":"IFERROR(IF(tabula_pārdošana[[#This Row],[Produkta ID]]<>\"\",VLOOKUP(tabula_pārdošana[Produkta ID],tabula_produkti[[Produkta ID]:[Nosaukums]],2,FALSE),\"\"),\"Unknown Product ID\")","v":"Saulessargi"},"2012-05-14",33,30,881,1149,{"$f":"tabula_pārdošana[[#This Row],[Pārdotās vienības (mazumtirdzn.)]]+tabula_pārdošana[[#This Row],[Pārdotās vienības (vairumtirdzn.)]]","v":2030},{"$f":"tabula_pārdošana[[#This Row],[Pārdotās vienības (mazumtirdzn.)]]*tabula_pārdošana[[#This Row],[Mazumtirdzniecības cena par vienību]]+tabula_pārdošana[[#This Row],[Pārdotās vienības (vairumtirdzn.)]]*tabula_pārdošana[[#This Row],[Vairumtirdzniecības cena par vienību*]]","v":63543}]
[null,4,{"$f":"IFERROR(IF(tabula_pārdošana[[#This Row],[Produkta ID]]<>\"\",VLOOKUP(tabula_pārdošana[Produkta ID],tabula_produkti[[Produkta ID]:[Nosaukums]],2,FALSE),\"\"),\"Unknown Product ID\")","v":"Ūdens pudeles"},"2012-05-14",29,27,802,1548,{"$f":"tabula_pārdošana[[#This Row],[Pārdotās vienības (mazumtirdzn.)]]+tabula_pārdošana[[#This Row],[Pārdotās vienības (vairumtirdzn.)]]","v":2350},{"$f":"tabula_pārdošana[[#This Row],[Pārdotās vienības (mazumtirdzn.)]]*tabula_pārdošana[[#This Row],[Mazumtirdzniecības cena par vienību]]+tabula_pārdošana[[#This Row],[Pārdotās vienības (vairumtirdzn.)]]*tabula_pārdošana[[#This Row],[Vairumtirdzniecības cena par vienību*]]","v":65054}]
[null,5,{"$f":"IFERROR(IF(tabula_pārdošana[[#This Row],[Produkta ID]]<>\"\",VLOOKUP(tabula_pārdošana[Produkta ID],tabula_produkti[[Produkta ID]:[Nosaukums]],2,FALSE),\"\"),\"Unknown Product ID\")","v":"Īsbikses"},"2013-12-11",24,15,824,1994,{"$f":"tabula_pārdošana[[#This Row],[Pārdotās vienības (mazumtirdzn.)]]+tabula_pārdošana[[#This Row],[Pārdotās vienības (vairumtirdzn.)]]","v":2818},{"$f":"tabula_pārdošana[[#This Row],[Pārdotās vienības (mazumtirdzn.)]]*tabula_pārdošana[[#This Row],[Mazumtirdzniecības cena par vienību]]+tabula_pārdošana[[#This Row],[Pārdotās vienības (vairumtirdzn.)]]*tabula_pārdošana[[#This Row],[Vairumtirdzniecības cena par vienību*]]","v":49686}]

{"sheet":"Cenrādis","index":2,"n_rows":18,"n_cols":6,"rows_kept":18,"cut":false,"hidden":false,"merged":[[15,1,15,5]]}
[null,"Produktu cenu lapa"]
[]
[null,"Adventure Works"]
[null,"Kļavu iela 239"]
[null,"Jelgava, LV-9999"]
[null,"Tālr: 55 550 150"]
[null,"Fakss: 55 550 159"]
[null,"www.adventure-works.com",null,null,null,"Pēdējais atjauninājums 2013.08.15."]
[]
[null,"Produkta ID","Nosaukums","Apraksts","Mazumtirdzniecības cena par vienību","Vairumtirdzniecības cena par vienību*"]
[null,1,"Krekli","Praktisks un stilīgs krekls ar dekoratīvu burzījumu no 100% kokvilnas.",22,15]
[null,2,"Sandales","Ja jums kājās ir mūsu sandales ar izturīgo gumijas zoli, tad staigāšana pa viskarstākajām smiltīm tāds nieks vien ir.",10,6]
[null,3,"Saulessargi","Paslēpieties no svilinošās saules zem mūsu īpaši lielā pludmales saulessarga, kas aiztur 96% no kaitīgā UV starojuma.",30,20]
[null,4,"Ūdens pudeles","Veldzējiet slāpes ar perfektas temperatūras ūdeni, ko spēj nodrošināt tikai mūsu izolētā ūdens pudele.",7,5]
[null,5,"Īsbikses","Tūliņ pēc peldes droši kāpiet automašīnā, ja vien jums kājās ir īpaši ātri žūstošās neilona īsbikses.",15,8]
[]
[null,null,null,null,null,"Zvaniet mums, ja prece nav minēta sarakstā."]
[null,null,null,null,null,"*Vairumtirdzniecības cenas attiecas tad, ja tiek pirktas 12 vai vairāk preču."]

{"sheet":"Cenas punkta rakurss","index":3,"n_rows":10,"n_cols":4,"rows_kept":10,"cut":false,"hidden":true,"merged":[[1,1,1,3]]}
[null,"Cenas punkta rakurstabula"]
[null,"Šī lapa jāsaglabā paslēpta. Jebkādas izmaiņas tālāk esošajā rakurstabulā var izraisīt nepareizus datus produktu pārdošanas atskaitē. "]
[null,"Atlasītais produkts:",{"$f":"IF(LEN(B5),B5,\"Nav\")","v":"Sandales"}]
[null,"Produkta nosaukums","Mazumtirdzniecības cena par vienību","Sum of Kopā pārdots (skaits)"]
[null,"Sandales",38,2464]
[null,null,50,1777]
[null,null,64,2539]
[null,null,70,1787]
[null,null,83,1758]
[null,null,91,2715]

{"sheet":"Pārdošanas tendenču rakurss","index":4,"n_rows":9,"n_cols":3,"rows_kept":9,"cut":false,"hidden":true,"merged":[[1,1,1,3]]}
[null,"Pārdošanas tendences rakurstabula"]
[null,"Šī lapa jāsaglabā paslēpta. Jebkādas izmaiņas tālāk esošajā rakurstabulā var izraisīt nepareizus datus produktu pārdošanas atskaitē. "]
[null,"Sum of Kopā pārdots (skaits)","Produkta nosaukums"]
[null,"Cenas datums","Sandales"]
[null,"jan",1787]
[null,"feb",4222]
[null,"mar",1777]
[null,"apr",2715]
[null,"mai",2539]